Cogmind - Beta 9.6 @@@ ROGUE MODE // 2020.07.14 @ 17:49:40 // AFD2019/Pay2Buy Player: Hermelin Result: Destroyed by G-34 Mercenary with Small Laser Performance ------------- Evolutions (1) 500 Regions Visited (2) 400 Robots Destroyed (16) 80 Value Destroyed (258) 258 Prototype IDs (2) 40 Alien Tech Used (0) 0 Bonus (0) 0 TOTAL SCORE: 1278 Bonus ------- None Cogmind --------- Core Integrity 0/400 Matter 300/300 Energy 100/100 System Corruption 0% Temperature Cool (6) Movement Core (50) Location -9/Materials Parts ------- > --- POWER (1) -------- (None) > --- PROPULSION (2) --- (None) > --- UTILITY (4) ------ Improved Signal Interpreter Improved Targeting Computer > --- WEAPON (2) ------- (None) > --- INVENTORY (10) --- Matter Filter Peak State ------------ > --- POWER ------------ (None) > --- PROPULSION ------- Improved Treads > --- UTILITY ---------- Improved Sensor Array Improved Signal Interpreter Improved Targeting Computer Hardened Light Armor Plating > --- WEAPON ----------- Mace > --- INVENTORY -------- Matter Filter [Rating: 12] Favorites ----------- Power Light Ion Engine Engine Light Ion Engine Propulsion Hover Unit Treads Improved Treads Leg Aluminum Leg Hover Unit Hover Unit Utility Improved Signal Interpreter Device Improved Sensor Array Processor Improved Signal Interpreter Protection Hardened Light Armor Plating Weapon Mace Energy Gun EM Pulse Gun Impact Weapon Mace Build | -11 -10 -9 ------- Run | Scr Mat Mat Slots Evolved 2 | . . 2 Power . | . . . Propulsion . | . . . Utility 2 | . . 2 Weapon . | . . . Parts Attached 6 | 1 3 2 Power . | . . . Engine . | . . . Core . | . . . Reactor . | . . . Propulsion 1 | . 1 . Treads . | . . . Leg 1 | . 1 . Wheel . | . . . Hover . | . . . Flight . | . . . Utility 4 | 1 1 2 Device 1 | . 1 . Storage . | . . . Processor 2 | 1 . 1 Hackware . | . . . Protection 1 | . . 1 Artifact . | . . . Weapon 1 | . 1 . Energy Gun . | . . . Energy Cannon . | . . . Ballistic Gun . | . . . Ballistic Cannon . | . . . Launcher . | . . . Special Weapon . | . . . Impact Weapon 1 | . 1 . Slashing Weapon . | . . . Piercing Weapon . | . . . Special Melee Weapon . | . . . Unidentified Prototypes . | . . . Parts Lost 9 | . 4 5 Power 1 | . 1 . Propulsion 4 | . 2 2 Utility 2 | . . 2 Weapon 2 | . 1 1 Highest Loss Streak 4 | . 2 4 Average Slot Usage (%) 61 | . 64 54 Engine 5 | . 7 . Treads 1 | . . 4 Leg 6 | . 7 4 Hover 5 | . 8 . Device 10 | . 12 7 Processor 16 | . 14 22 Protection 2 | . . 8 Energy Gun 4 | . 7 . Impact Weapon 7 | . 6 8 Naked Turns . | . . . Heaviest Build 11 | 11 8 8 Greatest Support 23 | 12 12 23 Greatest Overweight (x) 2 | . . 2 Average Overweight (x) . | . . . Largest Inventory Capacity 10 | 10 10 10 Average Capacity 10 | 10 10 10 Most Carried 3 | 1 3 2 Average Carried 1 | 1 1 1 Final Capacity 10 | 10 10 10 Final Carried 3 | 1 3 1 Class Distribution -------------------- 100% | Mutant Dominant Class ---------------- Mutant | -10/Materials Mutant | -9/Materials Resources | -11 -10 -9 ----------- Run | Scr Mat Mat Matter Collected 245 | 98 132 15 Remotely . | . . . Salvage Created 523 | 98 270 155 Parts . | . . . Haulers Intercepted 1 | . 1 . Recyclers Shooed . | . . . Parts Field Recycled . | . . . Retrieved Matter . | . . . Parts Self-Destructed . | . . . Prevented . | . . . Kills | -11 -10 -9 ------- Run | Scr Mat Mat Combat Hostiles Destroyed 11 | . 8 3 Melee 4 | . 1 3 Guns 6 | . 6 . Classes Destroyed 7 | 2 4 1 Worker 2 | . 1 1 Tunneler 1 | 1 . . Hauler 1 | . 1 . Recycler 1 | 1 . . Swarmer 7 | . 6 1 Grunt 2 | . 2 . Sentry 2 | . . 2 Best Kill Streak 4 | 1 4 2 Combat Bots Only 4 | . 4 2 Max Kills in Single Turn 1 | 1 1 1 Gunslinging . | . . . Exploded . | . . . Melee 1 | . 1 1 Uniques/NPCs Destroyed . | . . . Combat | -11 -10 -9 -------- Run | Scr Mat Mat Damage Taken 1336 | . 500 836 Core 611 | . 203 408 Absorbed by Shields . | . . . Core Remaining (%) 59 | 100 18 . Volleys Fired 47 | 9 38 . Largest 1 | 1 1 . Hottest 40 | 40 40 . Shots Fired 47 | 9 38 . Gun 47 | 9 38 . Cannon . | . . . Launcher . | . . . Special . | . . . Kinetic . | . . . Thermal . | . . . Explosive . | . . . Electromagnetic 47 | 9 38 . Robot Hit Streak 9 | 2 9 . Robot Miss Streak 3 | 2 3 . Penetration Max . | . . . Secondary Targets . | . . . Shots Hit Robots 45 | 5 30 10 Core Hits 27 | 3 11 13 Critical Hits . | . . . Critical Kills . | . . . Critical Parts Destroyed . | . . . Melee Attacks 24 | . 12 12 Impact 24 | . 12 12 Slashing . | . . . Piercing . | . . . Sneak Attacks 2 | . 1 1 Combat Hostiles . | . . . Follow-up Attacks . | . . . Damage Inflicted 1015 | 95 614 306 Guns 381 | 67 314 . Cannons . | . . . Explosions 137 | 28 109 . Melee 437 | . 191 246 Ramming 60 | . . 60 Kinetic . | . . . Thermal 137 | 28 109 . Explosive . | . . . Electromagnetic 381 | 67 314 . Impact 437 | . 191 246 Slashing . | . . . Piercing . | . . . Highest Corruption . | . . . Average Corruption . | . . . Corruption Purged . | . . . Overload Shots . | . . . Overflow Damage 124 | . 71 53 Projectiles . | . . . Explosions 8 | . 8 . Melee 116 | . 63 53 Knockbacks 1 | . . 1 Impact 1 | . . 1 Kinetic . | . . . Secondary . | . . . Self-Inflicted Damage 23 | . . 23 Shots . | . . . Rammed 27 | . . 27 Targets Rammed 27 | . . 27 Kicked . | . . . Crushed . | . . . Highest Temperature 107 | 14 107 . Average Temperature 21 | 6 25 . Received Heat Transfer 270 | . 72 198 Siege Activations . | . . . Robots Corrupted 2 | . 2 . Combat Hostiles 1 | . 1 . Parts Fried . | . . . Impact Corruptions 6 | . 4 2 Robots Melted . | . . . Combat Hostiles . | . . . Parts Melted . | . . . Heat Transferred 200 | 50 150 . Parts Sabotaged . | . . . Parts Stolen . | . . . Parts Stripped . | . . . Power Chain Reactions 2 | 1 1 . Missiles Intercepted . | . . . Alert | -11 -10 -9 ------- Run | Scr Mat Mat Peak Influence 120 | 10 120 85 Average Influence 45 | 4 57 30 Maximum Alert Level . | . . . Low Security (%) 100 | 100 100 100 Level 1 . | . . . Level 2 . | . . . Level 3 . | . . . Level 4 . | . . . Level 5 . | . . . High Security . | . . . Max Security . | . . . Squads Dispatched . | . . . Investigation . | . . . Extermination . | . . . Reinforcement . | . . . Assault . | . . . Garrison . | . . . Intercept . | . . . Construction Impeded . | . . . Haulers Reinforced . | . . . Stealth | -11 -10 -9 --------- Run | Scr Mat Mat Distress Signals 1 | . . 1 Communications Jammed . | . . . Distress Signals . | . . . Times Spotted 21 | . 13 8 Peak Tracking Total 4 | . 3 4 Tactical Retreats . | . . . Traps | -11 -10 -9 ------- Run | Scr Mat Mat Traps Triggered 1 | . 1 . Indirectly . | . . . Trap Hack Attempts . | . . . Triggered . | . . . Disarmed . | . . . Reprogrammed . | . . . Reused . | . . . Traps Extracted . | . . . Installed . | . . . Triggered . | . . . Machines | -11 -10 -9 ---------- Run | Scr Mat Mat Machines Disabled . | . . . Max in Single Turn . | . . . Machines Sabotaged . | . . . Garrisons Compromised . | . . . Overloaded Fab Kills . | . . . Fab Network Shutdowns . | . . . Hacking | -11 -10 -9 --------- Run | Scr Mat Mat Machines Accessed 4 | . 3 1 Terminals 4 | . 3 1 Fabricators . | . . . Repair Stations . | . . . Recycling Units . | . . . Scanalyzers . | . . . Garrison Access . | . . . Total Hacks 11 | . 9 2 Successful 7 | . 5 2 Failed 4 | . 4 . Catastrophic . | . . . Database Lockouts . | . . . Manual 6 | . 6 . Terminals 11 | . 9 2 Fabricators . | . . . Repair Stations . | . . . Recycling Units . | . . . Scanalyzers . | . . . Garrison Access . | . . . Terminal Hacks 5 | . 3 2 Prototype ID Bank 1 | . . 1 Branch Access Points 1 | . . 1 Unreport Threat 1 | . 1 . Registered Components 1 | . 1 . Zone Layout 1 | . 1 . Fabricator Hacks . | . . . Repair Station Hacks . | . . . Recycling Unit Hacks . | . . . Scanalyzer . | . . . Garrison Access Hacks . | . . . Unauthorized Hacks 2 | . 2 . Terminals 2 | . 2 . Assimilate 1 | . 1 . Botnet 1 | . 1 . Fabricators . | . . . Repair Stations . | . . . Recycling Units . | . . . Scanalyzers . | . . . Garrison Access . | . . . Data Cores Recovered . | . . . Used . | . . . Hacking Detections 4 | . 3 1 Full Trace Events . | . . . Feedback Events . | . . . Feedback Blocked . | . . . Robot Schematics Acquired . | . . . Robots Built . | . . . Matter . | . . . Time . | . . . Total Robot Build Rating . | . . . Part Schematics Acquired . | . . . Parts Built . | . . . Matter . | . . . Time . | . . . Total Part Build Rating . | . . . Parts Repaired . | . . . Time . | . . . Parts Recycled . | . . . Recycled Matter . | . . . Retrieved Matter . | . . . Retrieved Components . | . . . Parts Scanalyzed . | . . . Part Schematics Acquired . | . . . Parts Damaged . | . . . Bothacking | -11 -10 -9 ------------ Run | Scr Mat Mat Used RIF Installer . | . . . Robots Hacked . | . . . Non-combat . | . . . Combat . | . . . Robot Hacks Applied . | . . . Relay Couplers Released . | . . . Robots Rewired . | . . . Allies Hacked . | . . . Hacks Repelled . | . . . Allies | -11 -10 -9 -------- Run | Scr Mat Mat Total Allies 1 | . 1 . Largest Group 1 | . 1 . Highest-Rated Group 10 | . 10 . Highest-Rated Ally 10 | . 10 . Total Orders 2 | . 2 . GOTO 1 | . 1 . FOLLOW 1 | . 1 . Ally Attacks . | . . . Total Damage . | . . . Kills . | . . . Allies Corrupted . | . . . Allies Melted . | . . . Intel | -11 -10 -9 ------- Run | Scr Mat Mat Robot Analysis Total . | . . . Derelict Logs Recovered . | . . . Drone Launches . | . . . Drone Recoveries . | . . . Exploration | -11 -10 -9 ------------- Run | Scr Mat Mat Turns Passed 698 | 45 431 222 Spaces Moved 555 | 45 370 140 Core 49 | . 1 48 Treads 27 | . . 27 Legs 214 | . 149 65 Wheels . | . . . Hover 265 | 45 220 . Flight . | . . . Fastest Speed 50 | 56 50 50 Average Speed 87 | 56 83 108 Slowest Speed 160 | 56 120 160 Overloaded Moves . | . . . Propulsion Burnouts . | . . . Robots Hopped . | . . . Cave-ins Triggered . | . . . Exploration Rate (%) 30 | 3 64 24 Regions Visited 2 Branch Regions . Pre-discovered Areas . | . . . Known Exits Taken 2 | 1 1 . Unknown Exits Taken . | . . . Scrap Searched . | . . . Spaces Dug . | . . . Terrain Destroyed 10 | 4 6 . Melee . | . . . Projectile . | . . . AOE 10 | 4 6 . Actions | -11 -10 -9 --------- Run | Scr Mat Mat Total 673 | 54 434 185 Wait 16 | . 12 4 Move 553 | 44 369 140 Hop . | . . . Pick Up . | . . . Fast Attach 3 | . 3 . Attach 2 | . . 2 Detach . | . . . Swap 1 | 1 . . Drop . | . . . Fire 47 | 9 38 . Melee 24 | . 12 12 Ram 15 | . . 15 Kick . | . . . Crush 12 | . . 12 Escape Stasis . | . . . Rewire . | . . . Trap . | . . . Miscellaneous . | . . . Route ------- -11/Scrapyard -10/Materials (discovered 3 exits: *Mat x2 / [*Min]) -9/Materials (discovered 2 exits: *Min x2) History --------- Turn | Location | Event 5 | -11/Scrapyard | Discovered new exit (range 15) 28 | -11/Scrapyard | Identified exit to Materials 46 | -11/Scrapyard | Entered Materials 76 | -10/Materials | Discovered new exit (range 11) 164 | -10/Materials | Discovered new exit (range 16) 287 | -10/Materials | Core integrity fell below 50% 302 | -10/Materials | Core integrity fell below 20% 304 | -10/Materials | Build established: Mutant 341 | -10/Materials | Discovered new exit (range 6) 347 | -10/Materials | Identified exit to Materials 477 | -10/Materials | Entered another Materials area 477 | -9/Materials | Evolved 2 slots: Utility x2 493 | -9/Materials | Identified exit to Mines 661 | -9/Materials | Core integrity fell below 50% 670 | -9/Materials | Core integrity fell below 20% 691 | -9/Materials | Lost 4 parts (1n2u1w) 699 | -9/Materials | Destroyed by G-34 Mercenary with Small Laser Last Messages --------------- 00636_ Mace destroyed. 00636_ Slammed into Y-45 Defender. 00642_ Hrd. Light Armor Plating destroyed. 00643_ Slammed into Y-45 Defender. 00654_ Slammed into S-10 Pest. 00660_ Imp. Treads destroyed. 00661_ Slammed into S-10 Pest. 00661_ Destabilizing: System interference. 00661_ Imp. Targeting Computer temporarily disabled. 00663_ Slammed into S-10 Pest. 00663_ S-10 Pest destroyed. [Achievement: Fist Fight] 00664_ Slammed into Y-45 Defender. 00670_ Imp. Targeting Computer permanently disabled. 00670_ Destabilizing: Short circuit. 00671_ Slammed into Y-45 Defender. 00673_ Y-45 Defender destroyed. 00688_ Slammed into W-16 Scout. 00691_ K-01 Serf cleans the Machine. 00694_ Slammed into W-16 Scout. Map ----- +----------------------------------------------------+ | ?????????????????????????????????????????????????? | | ?????????????????????????????????????????????????? | | ?????????????????????????????????????????????????? | | ???????????????????????????????????????????####### | | ???????????????????????????????????????????? | | ??????????????????????????????????????????????# | | ??????????????????????????????????????????????# | | ?????????????????????????????????????????????????? | | ??????????????????????????????????????????????##+# | | ???????????????????????? ???????????????????# | | ?????????????????????? ???????????????????# | | ??????????????????? ???????????????????# "" | | ??????????????????? #??????????????????# "" | | ???????????????????"t "??????????????????# "" | | ???????????????????"" wT??????????????????# | | ?????????????? ???""" "??????????????????#+## | | ?????????????? """"" #????????########### | | ??????????????? """ #????????# + | | ???????????????? #????????# #### | | ????????????????? #????????# #??# | | ??????????????????"" k ########## #??# | | ?????????????????"""" a ##"""""""# #??# | | ????????????????""""" ##" " "# #??# | | ????????????????""""" ##" "##+####### | | ???????????? """ b% aw % | | ?????????? @ > % | | ?????????? g % u | | ????????????####+#########+## ########## | | ????????????????????????????#########????????## | | ??????????????????????????????????????????????# | | ??????????????????????????????????????????????# | | ??????????????????????????????????????????????? | | ?????????????????????????????????????????????????? | | ?????????????????????????????????????????????????? | | ?????????????????????????????????????????????????? | | ?????????????????????????????????????????????????? | | ?????????????????????????????????????????????????? | | ?????????????????????????????????????????????????? | | ?????????????????????????????????????????????????? | | ???????????????????????????????????>?????????????? | | ?????????????????????????????????????????????????? | | ?????????????????????????????????????????????????? | | ?????????????????????????????????????????????????? | | ?????????????????????????????????????????????????? | | ?????????????????????????????????????????????????? | | ?????????????????????????????????????????????????? | | ?????????????????????????????????????????????????? | | ?????????????????????????????????????????????????? | | ?????????????????????????????????????????????????? | | ?????????????????????????????????????????????????? | +----------------------------------------------------+ Best States ------------- Heat Dissipation 28 Energy Generation 10 Energy Capacity 125 Matter Stores 300 Matter Capacity 300 Sight Range 16 Robot Scan Range 13 Terrain Scan Density 10 Armor Coverage 150 Evasion (%) 53 Targeting Accuracy 6 Recoil Reduction 1 Item Schematics ----------------- None Robot Schematics ------------------ None Fabricated ------------ Nothing Alien Tech Used ----------------- None Achievements -------------- Fist Fight Challenges ------------ None Cogshop Purchases (12) ------------------------ Hrd. Light Armor Plating (Loot Box) Imp. Sensor Array (699) Imp. Signal Interpreter (699) EM Pulse Gun (599) Lgt. Ion Engine (599) Hover Unit (749) Hover Unit (749) Matter Filter (Loot Box) Aluminum Leg (614) Mace (590) Imp. Targeting Computer (327) Imp. Treads (722) Game ------ Seed HeatSurgeRedistributor Manual? 0 Play Time 00:14:12 Cumulative 50.4 hours Start 2020.07.14 @ 17:35:57 End 2020.07.14 @ 17:49:40 Sessions 1 Manual Loads 0 Difficulty Rogue Special Mode AFD2019/Pay2Buy Game No. 29 Rogue 29 Adventurer 0 Explorer 0 Win Type - Total 1 Types 0/0/0/1/0/0/0 Lore% 54 Gallery% 39 Achievement% 50 Wizard Run 0 Options --------- ASCII 0 Keyboard 0 Movement Numpad Keybinds 0 Fullscreen 1 Font 14/SmallcapsGlow Map View 84x54 Tactical HUD 1 Map Filters NONE Filters NONE Steam 1 RUN: ce4f6a6b-19e7-40c4-a7bf-eb47c38153e5